[Event "*** Titled Tuesday Blitz"]
[Site "Chess.com"]
[Date "2020.05.12"]
[Round "9"]
[White "ChelsieMonica"]
[Black "Yuri202062"]
[Result "1-0"]
[WhiteElo "2366"]
[BlackElo "2464"]
[TimeControl "180+1"]
[EndTime "11:43:39 PDT"]
[Termination "ChelsieMonica won on time"]

1. c4 {[%clk 0:03:00.9]} 1... e6 {[%clk 0:02:59.4]} 2. Nf3 {[%clk 0:03:00.2]}
2... d5 {[%clk 0:02:59.2]} 3. e3 {[%clk 0:03:01.1]} 3... Nf6 {[%clk 0:02:58.5]}
4. Nc3 {[%clk 0:03:00.7]} 4... c6 {[%clk 0:02:56]} 5. b3 {[%clk 0:03:00.8]} 5...
Bd6 {[%clk 0:02:55.4]} 6. Be2 {[%clk 0:03:01.1]} 6... O-O {[%clk 0:02:55.1]} 7.
Bb2 {[%clk 0:03:01.4]} 7... e5 {[%clk 0:02:54.9]} 8. cxd5 {[%clk 0:02:56.3]}
8... cxd5 {[%clk 0:02:54.5]} 9. Nb5 {[%clk 0:02:56.4]} 9... Nc6 {[%clk
0:02:54.8]} 10. Nxd6 {[%clk 0:02:56.1]} 10... Qxd6 {[%clk 0:02:54.8]} 11. O-O
{[%clk 0:02:56.1]} 11... Bg4 {[%clk 0:02:53.5]} 12. h3 {[%clk 0:02:55.4]} 12...
Bh5 {[%clk 0:02:53.5]} 13. Rc1 {[%clk 0:02:52]} 13... Rac8 {[%clk 0:02:52.9]}
14. d3 {[%clk 0:02:49.9]} 14... Rfd8 {[%clk 0:02:47.3]} 15. Qd2 {[%clk
0:02:46.1]} 15... h6 {[%clk 0:02:46.5]} 16. Nh4 {[%clk 0:02:27.8]} 16... Bxe2
{[%clk 0:02:45.5]} 17. Qxe2 {[%clk 0:02:27.8]} 17... Qe6 {[%clk 0:02:45.7]} 18.
f4 {[%clk 0:02:21.7]} 18... e4 {[%clk 0:02:36.6]} 19. f5 {[%clk 0:01:52.2]}
19... Qe7 {[%clk 0:02:32.6]} 20. dxe4 {[%clk 0:01:45.4]} 20... dxe4 {[%clk
0:02:24.2]} 21. Bxf6 {[%clk 0:01:37.9]} 21... Qxf6 {[%clk 0:02:23.2]} 22. Qg4
{[%clk 0:01:38.8]} 22... Re8 {[%clk 0:02:02.7]} 23. Qf4 {[%clk 0:01:31.9]} 23...
Rcd8 {[%clk 0:01:56.6]} 24. Rc4 {[%clk 0:01:31.1]} 24... Ne5 {[%clk 0:01:46.4]}
25. Rxe4 {[%clk 0:01:29.1]} 25... Nd3 {[%clk 0:01:40.5]} 26. Rxe8+ {[%clk
0:01:30]} 26... Rxe8 {[%clk 0:01:40.2]} 27. Qg3 {[%clk 0:01:27.2]} 27... Qe5
{[%clk 0:01:34.5]} 28. Qxe5 {[%clk 0:00:46.6]} 28... Rxe5 {[%clk 0:01:34.1]} 29.
Rd1 {[%clk 0:00:46.9]} 29... Rxe3 {[%clk 0:01:29.1]} 30. Nf3 {[%clk 0:00:47]}
30... Kf8 {[%clk 0:01:23.1]} 31. Kf1 {[%clk 0:00:46.7]} 31... Ke7 {[%clk
0:01:18]} 32. Rd2 {[%clk 0:00:47]} 32... Kf6 {[%clk 0:01:14.8]} 33. a4 {[%clk
0:00:29.7]} 33... Kxf5 {[%clk 0:01:01.1]} 34. Nd4+ {[%clk 0:00:29.8]} 34... Ke4
{[%clk 0:01:01.1]} 35. Nc2 {[%clk 0:00:30.7]} 35... Rg3 {[%clk 0:01:00.5]} 36.
Re2+ {[%clk 0:00:29.6]} 36... Kd5 {[%clk 0:00:55.6]} 37. Re7 {[%clk 0:00:27.5]}
37... Nc5 {[%clk 0:00:45.8]} 38. b4 {[%clk 0:00:20]} 38... Nxa4 {[%clk
0:00:23.8]} 39. Rxb7 {[%clk 0:00:20.1]} 39... f5 {[%clk 0:00:21.8]} 40. Rxa7
{[%clk 0:00:19.7]} 40... Nc3 {[%clk 0:00:21.9]} 41. Ra5+ {[%clk 0:00:20]} 41...
Ke4 {[%clk 0:00:18.1]} 42. Rc5 {[%clk 0:00:19.6]} 42... Kd3 {[%clk 0:00:11.8]}
43. Ne1+ {[%clk 0:00:19.2]} 43... Kd4 {[%clk 0:00:12]} 44. Nf3+ {[%clk
0:00:19.3]} 44... Kd3 {[%clk 0:00:10.3]} 45. b5 {[%clk 0:00:18.7]} 45... Ne4
{[%clk 0:00:07.4]} 46. Rxf5 {[%clk 0:00:18.8]} 46... Nd6 {[%clk 0:00:01]} 47.
Rd5+ {[%clk 0:00:18.2]} 1-0

[Event "*** Titled Tuesday Blitz"]
[Site "Chess.com"]
[Date "2020.05.12"]
[Round "9"]
[White "NZT72"]
[Black "gui_borba"]
[Result "1/2-1/2"]
[WhiteElo "2468"]
[BlackElo "2350"]
[TimeControl "180+1"]
[EndTime "11:43:39 PDT"]
[Termination "Game drawn by repetition"]

1. c4 {[%clk 0:03:00.9]} 1... e5 {[%clk 0:02:59.7]} 2. g3 {[%clk 0:03:00.9]}
2... Nf6 {[%clk 0:02:59.9]} 3. Bg2 {[%clk 0:03:01.2]} 3... d5 {[%clk 0:03:00]}
4. cxd5 {[%clk 0:03:00.9]} 4... Nxd5 {[%clk 0:03:00.9]} 5. Nf3 {[%clk
0:03:01.4]} 5... Nc6 {[%clk 0:03:00.5]} 6. O-O {[%clk 0:03:01.4]} 6... Be7
{[%clk 0:03:00.1]} 7. d4 {[%clk 0:03:00.5]} 7... e4 {[%clk 0:02:57.2]} 8. Ne5
{[%clk 0:03:00.5]} 8... f5 {[%clk 0:02:55.3]} 9. Nxc6 {[%clk 0:03:00.2]} 9...
bxc6 {[%clk 0:02:56.2]} 10. Qc2 {[%clk 0:02:59.7]} 10... Bd7 {[%clk 0:02:45.1]}
11. Nc3 {[%clk 0:02:20.5]} 11... O-O {[%clk 0:02:42.8]} 12. f3 {[%clk
0:02:17.2]} 12... Bf6 {[%clk 0:02:27.4]} 13. e3 {[%clk 0:02:05.9]} 13... Nxc3
{[%clk 0:02:18.2]} 14. bxc3 {[%clk 0:02:01.9]} 14... exf3 {[%clk 0:02:12.5]} 15.
Bxf3 {[%clk 0:02:01]} 15... Re8 {[%clk 0:02:11.5]} 16. e4 {[%clk 0:01:54.6]}
16... fxe4 {[%clk 0:02:05.5]} 17. Bxe4 {[%clk 0:01:54.8]} 17... h6 {[%clk
0:02:05.3]} 18. Bf4 {[%clk 0:01:50.1]} 18... Rb8 {[%clk 0:01:59]} 19. Rae1
{[%clk 0:01:21.9]} 19... Rb6 {[%clk 0:01:36.5]} 20. Bg6 {[%clk 0:01:13.5]} 20...
Rxe1 {[%clk 0:01:32.2]} 21. Rxe1 {[%clk 0:01:13.1]} 21... c5 {[%clk 0:01:08.8]}
22. dxc5 {[%clk 0:00:52.2]} 22... Rb8 {[%clk 0:01:07.7]} 23. Bd3 {[%clk
0:00:25.4]} 23... Bc6 {[%clk 0:01:01.8]} 24. Be4 {[%clk 0:00:23.2]} 24... Qf8
{[%clk 0:00:53.4]} 25. Be3 {[%clk 0:00:11.7]} 25... Bxe4 {[%clk 0:00:49]} 26.
Qxe4 {[%clk 0:00:11.4]} 26... Re8 {[%clk 0:00:49.9]} 27. Qc4+ {[%clk 0:00:10.5]}
27... Kh8 {[%clk 0:00:49.9]} 28. Bd2 {[%clk 0:00:10.5]} 28... Rxe1+ {[%clk
0:00:41.9]} 29. Bxe1 {[%clk 0:00:11.4]} 29... Qe7 {[%clk 0:00:42.8]} 30. Bf2
{[%clk 0:00:11.3]} 30... Qd7 {[%clk 0:00:42.7]} 31. Bd4 {[%clk 0:00:10]} 31...
Qg4 {[%clk 0:00:39.9]} 32. Qd3 {[%clk 0:00:08.5]} 32... Qd7 {[%clk 0:00:38]} 33.
Qe3 {[%clk 0:00:07.5]} 33... Bg5 {[%clk 0:00:32.3]} 34. Qe5 {[%clk 0:00:06.7]}
34... Qf7 {[%clk 0:00:28.2]} 35. Kg2 {[%clk 0:00:05.8]} 35... Qxa2+ {[%clk
0:00:27.1]} 36. Kh3 {[%clk 0:00:04]} 36... Qf7 {[%clk 0:00:28]} 37. c6 {[%clk
0:00:03.7]} 37... Qh5+ {[%clk 0:00:28.2]} 38. Kg2 {[%clk 0:00:03.6]} 38... Qf7
{[%clk 0:00:29.1]} 39. h4 {[%clk 0:00:03.4]} 39... Bf6 {[%clk 0:00:29.1]} 40.
Qe4 {[%clk 0:00:02.3]} 40... Qa2+ {[%clk 0:00:28.1]} 41. Kh3 {[%clk 0:00:02.2]}
41... Qf7 {[%clk 0:00:25.2]} 42. Qf5 {[%clk 0:00:01.7]} 42... Kg8 {[%clk
0:00:23]} 43. Qc8+ {[%clk 0:00:01.6]} 43... Kh7 {[%clk 0:00:22.9]} 44. Qf5+
{[%clk 0:00:01.6]} 44... Kg8 {[%clk 0:00:22.3]} 45. Qc8+ {[%clk 0:00:01.7]}
45... Qf8 {[%clk 0:00:22.8]} 46. Qe6+ {[%clk 0:00:01.7]} 46... Qf7 {[%clk
0:00:22.9]} 47. Qc8+ {[%clk 0:00:01.8]} 1/2-1/2

[Event "*** Titled Tuesday Blitz"]
[Site "Chess.com"]
[Date "2020.05.12"]
[Round "9"]
[White "MariaFominykh"]
[Black "mirochka"]
[Result "1-0"]
[WhiteElo "2336"]
[BlackElo "2168"]
[TimeControl "180+1"]
[EndTime "11:43:39 PDT"]
[Termination "MariaFominykh won by checkmate"]

1. d4 {[%clk 0:03:00.9]} 1... Nf6 {[%clk 0:02:59.2]} 2. Nf3 {[%clk 0:02:59.9]}
2... d5 {[%clk 0:02:53.7]} 3. c4 {[%clk 0:02:59.4]} 3... e6 {[%clk 0:02:52.7]}
4. Nc3 {[%clk 0:02:58.7]} 4... Be7 {[%clk 0:02:50.8]} 5. Bg5 {[%clk 0:02:55.2]}
5... O-O {[%clk 0:02:48.5]} 6. e3 {[%clk 0:02:53.9]} 6... h6 {[%clk 0:02:48.5]}
7. Bh4 {[%clk 0:02:48.3]} 7... Ne4 {[%clk 0:02:47.8]} 8. Bxe7 {[%clk 0:02:47.1]}
8... Qxe7 {[%clk 0:02:47.8]} 9. cxd5 {[%clk 0:02:41.6]} 9... Nxc3 {[%clk
0:02:46.1]} 10. bxc3 {[%clk 0:02:41.7]} 10... exd5 {[%clk 0:02:44.4]} 11. Be2
{[%clk 0:02:40.9]} 11... c5 {[%clk 0:02:24.5]} 12. O-O {[%clk 0:02:38.8]} 12...
Nc6 {[%clk 0:02:22.4]} 13. Rb1 {[%clk 0:02:33.1]} 13... b6 {[%clk 0:02:21.5]}
14. dxc5 {[%clk 0:01:55]} 14... Qxc5 {[%clk 0:02:18.9]} 15. Bb5 {[%clk
0:01:16.5]} 15... Bg4 {[%clk 0:01:54.4]} 16. Bxc6 {[%clk 0:00:53.2]} 16... Qxc6
{[%clk 0:01:53.2]} 17. Ne5 {[%clk 0:00:46.4]} 17... Bxd1 {[%clk 0:01:44.4]} 18.
Nxc6 {[%clk 0:00:46.2]} 18... Be2 {[%clk 0:01:38.8]} 19. Rfc1 {[%clk 0:00:41.3]}
19... Rfe8 {[%clk 0:01:29.1]} 20. a4 {[%clk 0:00:34.5]} 20... Re4 {[%clk
0:00:54.5]} 21. a5 {[%clk 0:00:31.1]} 21... bxa5 {[%clk 0:00:50.5]} 22. Nxa5
{[%clk 0:00:19.3]} 22... Ra4 {[%clk 0:00:41.1]} 23. Ra1 {[%clk 0:00:16.3]} 23...
Rxa1 {[%clk 0:00:40.2]} 24. Rxa1 {[%clk 0:00:17.2]} 24... Rc8 {[%clk 0:00:39.4]}
25. Nb3 {[%clk 0:00:15.3]} 25... Rxc3 {[%clk 0:00:38.1]} 26. Nd4 {[%clk
0:00:15.2]} 26... Bc4 {[%clk 0:00:37]} 27. f3 {[%clk 0:00:15]} 27... a6 {[%clk
0:00:35.4]} 28. Kf2 {[%clk 0:00:14.4]} 28... Rd3 {[%clk 0:00:32.3]} 29. Nf5
{[%clk 0:00:13]} 29... Rd2+ {[%clk 0:00:31.6]} 30. Kg3 {[%clk 0:00:12.7]} 30...
Ra2 {[%clk 0:00:27.8]} 31. Rc1 {[%clk 0:00:11.4]} 31... a5 {[%clk 0:00:26.9]}
32. e4 {[%clk 0:00:09]} 32... a4 {[%clk 0:00:22]} 33. exd5 {[%clk 0:00:09.1]}
33... Bxd5 {[%clk 0:00:21.7]} 34. Ne7+ {[%clk 0:00:09.2]} 34... Kh7 {[%clk
0:00:20.7]} 35. Nxd5 {[%clk 0:00:10.1]} 35... a3 {[%clk 0:00:20.4]} 36. Nc3
{[%clk 0:00:10.2]} 36... Rb2 {[%clk 0:00:19.7]} 37. Ra1 {[%clk 0:00:10.1]} 37...
Rb3 {[%clk 0:00:19.6]} 38. Ne4 {[%clk 0:00:09.1]} 38... Kg6 {[%clk 0:00:18.5]}
39. Nc5 {[%clk 0:00:08.8]} 39... Rc3 {[%clk 0:00:17.8]} 40. Nd7 {[%clk
0:00:08.7]} 40... f5 {[%clk 0:00:16.7]} 41. Ne5+ {[%clk 0:00:08.5]} 41... Kf6
{[%clk 0:00:16.1]} 42. Nd7+ {[%clk 0:00:07.9]} 42... Kg6 {[%clk 0:00:15.7]} 43.
Nb6 {[%clk 0:00:07.9]} 43... Kg5 {[%clk 0:00:14.1]} 44. Nd5 {[%clk 0:00:07.4]}
44... Rd3 {[%clk 0:00:13.3]} 45. h4+ {[%clk 0:00:07.2]} 45... Kh5 {[%clk
0:00:12.5]} 46. Nf4# {[%clk 0:00:07.3]} 1-0

[Event "*** Titled Tuesday Blitz"]
[Site "Chess.com"]
[Date "2020.05.12"]
[Round "9"]
[White "quesfr"]
[Black "Efremov_Vlad"]
[Result "1-0"]
[WhiteElo "2281"]
[BlackElo "2129"]
[TimeControl "180+1"]
[EndTime "11:43:39 PDT"]
[Termination "quesfr won by resignation"]

1. e4 {[%clk 0:03:00.9]} 1... c5 {[%clk 0:02:59.6]} 2. c3 {[%clk 0:03:00.1]}
2... d5 {[%clk 0:02:59.4]} 3. exd5 {[%clk 0:03:01]} 3... Qxd5 {[%clk 0:02:59.5]}
4. d4 {[%clk 0:03:01.2]} 4... e6 {[%clk 0:02:59.5]} 5. Na3 {[%clk 0:03:00.1]}
5... Nf6 {[%clk 0:02:55.3]} 6. Nb5 {[%clk 0:02:56.9]} 6... Qd8 {[%clk
0:02:46.7]} 7. dxc5 {[%clk 0:02:56.6]} 7... Bxc5 {[%clk 0:02:34.3]} 8. Qxd8+
{[%clk 0:02:56.4]} 8... Kxd8 {[%clk 0:02:33.5]} 9. Bf4 {[%clk 0:02:49.8]} 9...
Na6 {[%clk 0:02:13.4]} 10. Bd6 {[%clk 0:02:35.7]} 10... Bxd6 {[%clk 0:01:46.8]}
11. Nxd6 {[%clk 0:02:36.6]} 11... Ke7 {[%clk 0:01:47.2]} 12. Nxc8+ {[%clk
0:02:35.5]} 12... Rhxc8 {[%clk 0:01:46.6]} 13. Bxa6 {[%clk 0:02:33.4]} 13...
bxa6 {[%clk 0:01:47.5]} 14. O-O-O {[%clk 0:02:21.1]} 14... Rab8 {[%clk
0:01:46.2]} 15. Nf3 {[%clk 0:02:16.1]} 15... Nd5 {[%clk 0:01:39.4]} 16. Rhe1
{[%clk 0:02:09.8]} 16... Kf8 {[%clk 0:01:29.6]} 17. Ne5 {[%clk 0:02:06.2]} 17...
Rb7 {[%clk 0:01:27]} 18. Rd4 {[%clk 0:02:00.4]} 18... f6 {[%clk 0:01:22.1]} 19.
Nf3 {[%clk 0:01:54.1]} 19... Kf7 {[%clk 0:01:20.3]} 20. Ra4 {[%clk 0:01:49.4]}
20... Nb4 {[%clk 0:00:58.5]} 21. Rd1 {[%clk 0:01:41.7]} 21... a5 {[%clk
0:00:21.3]} 22. Rxa5 {[%clk 0:01:35]} 22... Nc6 {[%clk 0:00:16.4]} 23. Rc5
{[%clk 0:01:30.6]} 23... Ne7 {[%clk 0:00:12.7]} 24. Rxc8 {[%clk 0:01:27.5]}
24... Nxc8 {[%clk 0:00:13.6]} 25. Rd8 {[%clk 0:01:15.3]} 25... Ne7 {[%clk
0:00:11.5]} 26. Nd4 {[%clk 0:01:11.5]} 26... Nd5 {[%clk 0:00:11.1]} 27. g3
{[%clk 0:01:07.1]} 27... Rc7 {[%clk 0:00:10.4]} 28. h4 {[%clk 0:01:01.6]} 28...
Ke7 {[%clk 0:00:08.5]} 29. Rh8 {[%clk 0:01:00.4]} 29... h6 {[%clk 0:00:08]} 30.
h5 {[%clk 0:00:58.7]} 30... Kf7 {[%clk 0:00:06.9]} 31. Kd2 {[%clk 0:00:57.3]}
31... Ne7 {[%clk 0:00:05.9]} 32. Rd8 {[%clk 0:00:41.6]} 32... Rb7 {[%clk
0:00:05.4]} 33. b3 {[%clk 0:00:38.3]} 33... Nd5 {[%clk 0:00:05.7]} 34. Rd6
{[%clk 0:00:34.3]} 34... Nc7 {[%clk 0:00:02.6]} 35. c4 {[%clk 0:00:32.1]} 35...
Ke7 {[%clk 0:00:02.4]} 36. Ra6 {[%clk 0:00:32.1]} 36... Kf7 {[%clk 0:00:01.1]}
37. Kc3 {[%clk 0:00:29.4]} 37... Ke7 {[%clk 0:00:01.5]} 38. Nc6+ {[%clk
0:00:29.2]} 38... Kd7 {[%clk 0:00:01.2]} 39. Nxa7 {[%clk 0:00:28.7]} 39... Ke7
{[%clk 0:00:01]} 40. Nc6+ {[%clk 0:00:28.3]} 40... Kd7 {[%clk 0:00:01.1]} 41.
Nd4 {[%clk 0:00:28.8]} 41... Ke7 {[%clk 0:00:01.5]} 42. a4 {[%clk 0:00:27.6]}
42... Kd7 {[%clk 0:00:01.7]} 43. Ra5 {[%clk 0:00:26.8]} 43... Ke7 {[%clk
0:00:02.1]} 44. Rc5 {[%clk 0:00:26.4]} 44... Kd7 {[%clk 0:00:02.3]} 45. a5
{[%clk 0:00:26.1]} 45... Ra7 {[%clk 0:00:02.1]} 46. b4 {[%clk 0:00:25.6]} 46...
Na6 {[%clk 0:00:02.3]} 47. Rb5 {[%clk 0:00:23.5]} 47... Nc7 {[%clk 0:00:02.6]}
48. Rb6 {[%clk 0:00:23.4]} 48... Ke7 {[%clk 0:00:01.8]} 49. Nc6+ {[%clk
0:00:23.3]} 49... Kd7 {[%clk 0:00:01.9]} 50. Nxa7 {[%clk 0:00:24.2]} 50... Na8
{[%clk 0:00:02.3]} 51. Rb7+ {[%clk 0:00:23.7]} 1-0

[Event "*** Titled Tuesday Blitz"]
[Site "Chess.com"]
[Date "2020.05.12"]
[Round "9"]
[White "Anton_Demchenko"]
[Black "Papa12341234"]
[Result "1-0"]
[WhiteElo "2804"]
[BlackElo "2501"]
[TimeControl "180+1"]
[EndTime "11:43:40 PDT"]
[Termination "Anton_Demchenko won by checkmate"]

1. d4 {[%clk 0:03:00.9]} 1... Nf6 {[%clk 0:02:59]} 2. Nf3 {[%clk 0:03:00.8]}
2... g6 {[%clk 0:02:59.4]} 3. Bf4 {[%clk 0:03:00.3]} 3... Bg7 {[%clk 0:02:59.8]}
4. c3 {[%clk 0:03:00.9]} 4... O-O {[%clk 0:02:59.9]} 5. Nbd2 {[%clk 0:03:01.5]}
5... d6 {[%clk 0:03:00.5]} 6. e4 {[%clk 0:03:02]} 6... Nbd7 {[%clk 0:03:01.1]}
7. Be2 {[%clk 0:03:02.2]} 7... c5 {[%clk 0:03:01.6]} 8. d5 {[%clk 0:03:00.3]}
8... Nh5 {[%clk 0:02:56.9]} 9. Be3 {[%clk 0:02:59.5]} 9... e6 {[%clk 0:02:57.3]}
10. dxe6 {[%clk 0:02:55]} 10... fxe6 {[%clk 0:02:58.2]} 11. Nc4 {[%clk
0:02:55.4]} 11... Nf4 {[%clk 0:02:55.5]} 12. Bxf4 {[%clk 0:02:48.9]} 12... Rxf4
{[%clk 0:02:56.4]} 13. Nxd6 {[%clk 0:02:48.8]} 13... Ne5 {[%clk 0:02:55]} 14.
O-O {[%clk 0:02:39.5]} 14... Nxf3+ {[%clk 0:02:50.1]} 15. Bxf3 {[%clk
0:02:39.2]} 15... Be5 {[%clk 0:02:40.1]} 16. Nc4 {[%clk 0:02:35.4]} 16... Qxd1
{[%clk 0:02:40.3]} 17. Raxd1 {[%clk 0:02:33]} 17... Bc7 {[%clk 0:02:41.2]} 18.
a4 {[%clk 0:02:20.1]} 18... a6 {[%clk 0:02:38.6]} 19. Nd6 {[%clk 0:01:44.8]}
19... Rf8 {[%clk 0:02:32.9]} 20. Bg4 {[%clk 0:01:40]} 20... h5 {[%clk
0:02:20.4]} 21. Bh3 {[%clk 0:01:35]} 21... Bd7 {[%clk 0:02:15]} 22. Nxb7 {[%clk
0:01:31.9]} 22... Bxa4 {[%clk 0:02:15]} 23. Bxe6+ {[%clk 0:01:31.2]} 23... Kg7
{[%clk 0:02:15.2]} 24. b3 {[%clk 0:01:09.9]} 24... Bb5 {[%clk 0:02:10.2]} 25. c4
{[%clk 0:01:09.8]} 25... Bc6 {[%clk 0:02:10.5]} 26. Bd5 {[%clk 0:01:10.3]} 26...
Bxb7 {[%clk 0:02:07]} 27. Bxb7 {[%clk 0:01:10.4]} 27... Rab8 {[%clk 0:02:04.6]}
28. Bxa6 {[%clk 0:01:01.4]} 28... Rxb3 {[%clk 0:02:04.5]} 29. g3 {[%clk
0:00:57.8]} 29... Be5 {[%clk 0:02:03.4]} 30. Rd7+ {[%clk 0:00:48.7]} 30... Rf7
{[%clk 0:02:03.6]} 31. Rxf7+ {[%clk 0:00:48.5]} 31... Kxf7 {[%clk 0:02:04.5]}
32. f4 {[%clk 0:00:46]} 32... Bd4+ {[%clk 0:02:03.9]} 33. Kg2 {[%clk 0:00:45]}
33... Rb2+ {[%clk 0:02:00.6]} 34. Kh3 {[%clk 0:00:45.3]} 34... Kf6 {[%clk
0:01:58.8]} 35. e5+ {[%clk 0:00:38.2]} 35... Ke6 {[%clk 0:01:59.1]} 36. Bc8+
{[%clk 0:00:36.8]} 36... Ke7 {[%clk 0:01:59.5]} 37. Ba6 {[%clk 0:00:27.4]} 37...
Ke6 {[%clk 0:01:59.1]} 38. Bb5 {[%clk 0:00:27.6]} 38... Rc2 {[%clk 0:01:57.5]}
39. Be8 {[%clk 0:00:21.9]} 39... g5 {[%clk 0:01:24.4]} 40. fxg5 {[%clk
0:00:21.4]} 40... Bxe5 {[%clk 0:01:23.4]} 41. Bxh5 {[%clk 0:00:19.7]} 41... Ke7
{[%clk 0:01:21.3]} 42. Bf7 {[%clk 0:00:16.4]} 42... Bd4 {[%clk 0:01:16]} 43. Bd5
{[%clk 0:00:15.7]} 43... Re2 {[%clk 0:01:11.1]} 44. g6 {[%clk 0:00:08]} 44...
Bf6 {[%clk 0:01:11]} 45. Rf4 {[%clk 0:00:06.2]} 45... Rc2 {[%clk 0:01:06.7]} 46.
g7 {[%clk 0:00:06.2]} 46... Bxg7 {[%clk 0:01:04.2]} 47. Rf7+ {[%clk 0:00:07.1]}
47... Kd6 {[%clk 0:01:04.6]} 48. Rxg7 {[%clk 0:00:08]} 48... Ke5 {[%clk
0:01:05.2]} 49. Rg4 {[%clk 0:00:07.4]} 49... Rf2 {[%clk 0:01:04]} 50. Re4+
{[%clk 0:00:07.5]} 50... Kf5 {[%clk 0:01:04.6]} 51. Rf4+ {[%clk 0:00:08]} 51...
Rxf4 {[%clk 0:01:04.3]} 52. gxf4 {[%clk 0:00:08.9]} 52... Kxf4 {[%clk
0:01:05.2]} 53. Kh4 {[%clk 0:00:09.4]} 53... Kf5 {[%clk 0:01:05.1]} 54. Kh5
{[%clk 0:00:09.5]} 54... Kf4 {[%clk 0:01:05.3]} 55. h4 {[%clk 0:00:10.4]} 55...
Kf5 {[%clk 0:01:06]} 56. Kh6 {[%clk 0:00:10.6]} 56... Kf6 {[%clk 0:01:06.5]} 57.
h5 {[%clk 0:00:10.5]} 57... Ke7 {[%clk 0:01:06]} 58. Kg7 {[%clk 0:00:10.7]}
58... Kd6 {[%clk 0:01:06.2]} 59. h6 {[%clk 0:00:11.1]} 59... Ke5 {[%clk
0:01:06.7]} 60. h7 {[%clk 0:00:10.9]} 60... Kd6 {[%clk 0:01:07.6]} 61. h8=Q
{[%clk 0:00:10.8]} 61... Ke7 {[%clk 0:01:08.5]} 62. Qh6 {[%clk 0:00:10.3]} 62...
Kd7 {[%clk 0:01:09.4]} 63. Qe6+ {[%clk 0:00:08.1]} 63... Kc7 {[%clk 0:01:09.4]}
64. Qc6+ {[%clk 0:00:08]} 64... Kd8 {[%clk 0:01:09.8]} 65. Qd6+ {[%clk
0:00:07.3]} 65... Kc8 {[%clk 0:01:09.2]} 66. Qxc5+ {[%clk 0:00:07.5]} 66... Kd7
{[%clk 0:01:09.1]} 67. Qc6+ {[%clk 0:00:07.3]} 67... Ke7 {[%clk 0:01:09.6]} 68.
Qe6+ {[%clk 0:00:06.9]} 68... Kd8 {[%clk 0:01:09.8]} 69. Qf7 {[%clk 0:00:06.1]}
69... Kc8 {[%clk 0:01:09.6]} 70. Qe7 {[%clk 0:00:06.2]} 70... Kb8 {[%clk
0:01:08.6]} 71. Qb7# {[%clk 0:00:07.1]} 1-0

[Event "*** Titled Tuesday Blitz"]
[Site "Chess.com"]
[Date "2020.05.12"]
[Round "9"]
[White "Irishchessman16"]
[Black "Zq1"]
[Result "1/2-1/2"]
[WhiteElo "2426"]
[BlackElo "2539"]
[TimeControl "180+1"]
[EndTime "11:43:40 PDT"]
[Termination "Game drawn by repetition"]

1. d4 {[%clk 0:03:00.9]} 1... Nf6 {[%clk 0:02:58.6]} 2. Nf3 {[%clk 0:03:01.1]}
2... e6 {[%clk 0:02:58.2]} 3. e3 {[%clk 0:03:00.1]} 3... c5 {[%clk 0:02:57.4]}
4. Bd3 {[%clk 0:02:59.4]} 4... b6 {[%clk 0:02:57]} 5. O-O {[%clk 0:02:59.3]}
5... Bb7 {[%clk 0:02:54.7]} 6. b3 {[%clk 0:02:55.7]} 6... Be7 {[%clk 0:02:53.3]}
7. Bb2 {[%clk 0:02:55.2]} 7... O-O {[%clk 0:02:52.6]} 8. c4 {[%clk 0:02:53.9]}
8... cxd4 {[%clk 0:02:51.5]} 9. exd4 {[%clk 0:02:53.6]} 9... d5 {[%clk
0:02:49.6]} 10. Nc3 {[%clk 0:02:39.5]} 10... Nc6 {[%clk 0:02:47.7]} 11. cxd5
{[%clk 0:02:36.6]} 11... Nxd5 {[%clk 0:02:46.8]} 12. Ne4 {[%clk 0:02:29.8]}
12... Nf6 {[%clk 0:02:42.4]} 13. Neg5 {[%clk 0:02:19.5]} 13... h6 {[%clk
0:02:37.9]} 14. Nh3 {[%clk 0:02:18.5]} 14... Rc8 {[%clk 0:02:27.3]} 15. Rc1
{[%clk 0:02:03.9]} 15... Nb4 {[%clk 0:02:23.1]} 16. Bb1 {[%clk 0:02:02.8]} 16...
Rxc1 {[%clk 0:02:11.3]} 17. Bxc1 {[%clk 0:01:48.3]} 17... Be4 {[%clk 0:01:51.7]}
18. Bxe4 {[%clk 0:01:38.4]} 18... Nxe4 {[%clk 0:01:50.9]} 19. a3 {[%clk
0:01:37.3]} 19... Nd5 {[%clk 0:01:43.5]} 20. Ne5 {[%clk 0:01:31.6]} 20... Ndc3
{[%clk 0:01:28.9]} 21. Qf3 {[%clk 0:01:29.4]} 21... Qxd4 {[%clk 0:01:19.6]} 22.
Nc6 {[%clk 0:01:19.4]} 22... Qd6 {[%clk 0:01:19.1]} 23. Nxe7+ {[%clk 0:01:18.8]}
23... Qxe7 {[%clk 0:01:19]} 24. Bb2 {[%clk 0:01:18.4]} 24... Rc8 {[%clk
0:00:55.5]} 25. Rc1 {[%clk 0:01:15.4]} 25... Nd2 {[%clk 0:00:49]} 26. Qd3 {[%clk
0:01:01.2]} 26... Nxb3 {[%clk 0:00:35.8]} 27. Rxc3 {[%clk 0:00:43.2]} 27... Rd8
{[%clk 0:00:34.8]} 28. Qc2 {[%clk 0:00:23.6]} 28... Nd4 {[%clk 0:00:34]} 29. Qd1
{[%clk 0:00:19.5]} 29... e5 {[%clk 0:00:25]} 30. Rd3 {[%clk 0:00:19.3]} 30...
Qc5 {[%clk 0:00:22.2]} 31. Bxd4 {[%clk 0:00:18.9]} 31... Rxd4 {[%clk 0:00:19.2]}
32. Rxd4 {[%clk 0:00:18.7]} 32... exd4 {[%clk 0:00:19.5]} 33. Nf4 {[%clk
0:00:17.8]} 33... Qxa3 {[%clk 0:00:19.1]} 34. g3 {[%clk 0:00:18]} 34... Qc3
{[%clk 0:00:16.9]} 35. Qd3 {[%clk 0:00:17.6]} 35... Qxd3 {[%clk 0:00:16.6]} 36.
Nxd3 {[%clk 0:00:17.1]} 36... Kf8 {[%clk 0:00:17.2]} 37. Kg2 {[%clk 0:00:17.2]}
37... Ke7 {[%clk 0:00:17.8]} 38. Kf3 {[%clk 0:00:17.9]} 38... f5 {[%clk
0:00:16.4]} 39. Kf4 {[%clk 0:00:18.4]} 39... Ke6 {[%clk 0:00:15.7]} 40. Nb4
{[%clk 0:00:16.8]} 40... a5 {[%clk 0:00:13.7]} 41. Nc6 {[%clk 0:00:16.8]} 41...
Kd5 {[%clk 0:00:13.9]} 42. Ne7+ {[%clk 0:00:15.4]} 42... Kc4 {[%clk 0:00:13.8]}
43. Nxf5 {[%clk 0:00:15.3]} 43... a4 {[%clk 0:00:14]} 44. Ke4 {[%clk 0:00:15.7]}
44... d3 {[%clk 0:00:11.9]} 45. Ne3+ {[%clk 0:00:15.5]} 45... Kc3 {[%clk
0:00:12.1]} 46. Nd5+ {[%clk 0:00:15.3]} 46... Kc2 {[%clk 0:00:12.3]} 47. Nb4+
{[%clk 0:00:15.2]} 47... Kb3 {[%clk 0:00:11.4]} 48. Nxd3 {[%clk 0:00:15.1]}
48... a3 {[%clk 0:00:11.7]} 49. Kd5 {[%clk 0:00:15.3]} 49... Kc3 {[%clk
0:00:10.7]} 50. Nc1 {[%clk 0:00:14.7]} 50... Kb2 {[%clk 0:00:10]} 51. Nd3+
{[%clk 0:00:14.6]} 51... Kc3 {[%clk 0:00:10.4]} 52. Nc1 {[%clk 0:00:14.6]} 52...
Kb2 {[%clk 0:00:10.5]} 53. Nd3+ {[%clk 0:00:13.7]} 53... Kc3 {[%clk 0:00:09.7]}
1/2-1/2